fUSD/lending_fUSD_20250724
["ID","MTS","AMOUNT","RATE_DAILY","PERIOD"]
[374634332,1753390242195,-500.0,0.00035849,15]
[374634334,1753390242205,-296.50913345,0.00035849,15]
[374634336,1753390242214,-150.0,0.00035849,15]
[374634338,1753390242224,-150.0,0.00035849,15]
[374634340,1753390242234,-500.0,0.00035849,15]
[374634342,1753390242243,-349.33635041,0.00035849,15]
[374634344,1753390242253,-500.0,0.00035849,15]
[374634346,1753390242263,-170.41454212,0.00035849,15]
[374634348,1753390242272,-500.0,0.00035849,15]
[374634350,1753390242285,-500.0,0.00035849,15]
[374634352,1753390242294,-390.51782444,0.00035849,15]
[374634354,1753390242303,-500.0,0.00035849,15]
[374634356,1753390242312,-500.0,0.00035849,15]
[374634358,1753390242322,-500.0,0.00035849,15]
[374634360,1753390242331,-500.0,0.00035849,15]
[374634362,1753390242341,-500.0,0.00035849,15]
[374634364,1753390242351,-500.0,0.00035849,15]
[374634366,1753390242361,-500.0,0.00035849,15]
[374634368,1753390242370,-500.0,0.00035849,15]
[374634370,1753390242380,-500.0,0.00035849,15]
[374634372,1753390242390,-646.80416828,0.00035849,15]
[374634374,1753390242399,-500.0,0.00035849,15]
[374634376,1753390242408,-500.0,0.00035849,15]
[374634378,1753390242418,-500.0,0.00035849,15]
[374634380,1753390242427,-500.0,0.00035849,15]
[374634381,1753390242436,-2569.81,0.00035849,120]
[374634383,1753390242447,-200.0,0.00035849,2]
[374634386,1753390242456,-500.0,0.00035849,15]
[374634387,1753390242466,-500.0,0.00035849,15]
[374634390,1753390242475,-150.0,0.00035849,15]
[374634392,1753390242485,-150.0,0.00035849,15]
[374634394,1753390242495,-150.0,0.00035849,15]
[374634396,1753390242504,-150.0,0.00035849,15]
[374634398,1753390242514,-150.0,0.00035849,15]
[374634400,1753390242523,-70828.5223918,0.0003585,3]
[374634402,1753390242535,-1821.48337735,0.0003585,3]
[374634404,1753390242546,-6645.06205028,0.0003585,3]
[374634406,1753390242560,-894.525,0.0003585,3]
[374634409,1753390242571,-290.91850001,0.0003585,3]
[374634411,1753390242582,-3729.36617629,0.0003585,3]
[374634413,1753390242594,-566.6996,0.0003585,3]
[374634476,1753390243241,-2582.78,0.00035749,2]
[374634478,1753390243253,-587.8837938,0.00035749,2]
[374634480,1753390243264,-151.0,0.00035849,2]
[374634482,1753390243273,-1923.2787544,0.0003585,17]
[374634484,1753390243288,-538.97057758,0.0003585,17]
[374634491,1753390243350,-10110.58944214,0.0003585,17]
[374634508,1753390243512,-37896.57863553,0.0003585,17]
[374634510,1753390243522,-166490.99265657,0.0003585,3]
[374634522,1753390243623,-3940.02718252,0.0003585,3]
[374634792,1753390246383,-150.0,0.00035849,15]
[374634794,1753390246393,-4726.36383668,0.0003585,3]
[374634800,1753390246439,-11836.0,0.0003585,3]
[374634824,1753390246656,-848.2800054,0.0003585,3]
[374636033,1753390317688,716.0,0.00027397,120]
[374636037,1753390396425,160.27,0.00013699,2]
[374636050,1753390868399,9941.51204,7.945e-05,2]
[374636070,1753391414441,160.19,0.00013699,2]
[374636109,1753391433347,-194.17,0.00020575,2]
[374636110,1753391433358,-1347.18804847,0.000219,2]
[374636111,1753391433500,-161.19171617,0.000219,2]
[374636112,1753391433511,-150.0,0.00022,2]
[374636113,1753391433520,-250.0,0.00022633,2]
[374636114,1753391433530,-150.0,0.0002318,2]
[374636115,1753391433540,-500.0,0.0002398,2]
[374636116,1753391433549,-278.27627271,0.0002398,2]
[374636117,1753391433561,-136.72372729,0.0002398,2]
[374636118,1753391433571,-610.0,0.0002398,2]
[374636119,1753391433581,-170.0,0.0002437,2]
[374636120,1753391433591,-367.70555686,0.00024665,2]
[374636121,1753391433601,-245.1370379,0.00024665,2]
[374636122,1753391433611,-305.23242504,0.0002589,18]
[374636123,1753391433625,-228.33553879,0.0002695,2]
[374636124,1753391433635,-228.33553879,0.00026964,2]
[374636125,1753391433644,-228.33553879,0.00026977,2]
[374636126,1753391433654,-200.0,0.00026988,2]
[374636127,1753391433667,-228.33553879,0.00027012,2]
[374636128,1753391433677,-200.0,0.00027053,2]
[374636129,1753391433687,-200.0,0.00027057,2]
[374636130,1753391433698,-250.56831572,0.00027186,2]
[374636131,1753391433708,-1200.0,0.00027484,2]
[374636132,1753391433720,-600.0,0.00027485,2]
[374636133,1753391433731,-478.4,0.00027485,2]
[374636134,1753391433742,-152.71,0.00028095,2]
[374636135,1753391433752,-160.19,0.0002911,2]
[374636136,1753391433763,-300.0,0.00029363,2]
[374636137,1753391433773,-300.0,0.00029363,2]
[374636138,1753391433784,-284.34,0.00029365,2]
[374636139,1753391433794,-1680.0,0.00029829,2]
[374636140,1753391433804,-160.55792226,0.00030137,2]
[374636141,1753391433814,-2846.80093046,0.00030433,2]
[374636142,1753391433842,-2078.6556657,0.00030433,2]
[374636143,1753391433854,-24.11340384,0.00030433,2]
[374636144,1753391433864,-200.0,0.00030543,2]
[374636145,1753391433874,-498.96252654,0.00030665,2]
[374636146,1753391433886,-1425.56200764,0.00030665,2]
[374636147,1753391433897,-3075.47546582,0.00030665,2]
[374636148,1753391433907,-2000.0,0.00031,5]
[374636149,1753391433916,-284.34,0.00031095,2]
[374636150,1753391433927,-209.49,0.00031269,2]
[374636151,1753391433936,-180.0,0.00031269,7]
[374636152,1753391433946,-174.63,0.00031269,2]
[374636153,1753391433955,-1000.0,0.00031269,2]
[374636154,1753391433965,-500.0,0.00031592,15]
[374636155,1753391433975,-300.0,0.00031668,3]
[374636156,1753391433985,-500.0,0.00031866,15]
[374636157,1753391433995,-763.54588776,0.000319,2]
[374636158,1753391434005,-364.298,0.000319,30]
[374636159,1753391434015,-151.62491514,0.000319,2]
[374636160,1753391434026,-1294.14423063,0.000319,2]
[374636161,1753391434036,-500.0,0.00031973,5]
[374636162,1753391434046,-1790.59446363,0.0003199,3]
[374636163,1753391434058,-29819.76321304,0.0003199,3]
[374636164,1753391434070,-11999.08982587,0.0003199,3]
[374636165,1753391434082,-5983.3830218,0.0003199,3]
[374636167,1753391437639,-1189.5,0.0003199,3]
[374636168,1753391437803,-726.7586144,0.0003199,3]
[374636327,1753391439638,-12112.98108527,0.0003199,3]
[374636330,1753391439650,-91603.86192299,0.0003199,3]
[374636332,1753391439660,-9841.34913419,0.0003199,3]
[374636334,1753391439671,-208.02,0.0003199,2]
[374636336,1753391439682,-208.02,0.0003199,2]
[374636338,1753391439701,-208.02,0.0003199,2]
[374636340,1753391439712,-208.02,0.0003199,2]
[374636342,1753391439722,-208.02,0.0003199,2]
[374636344,1753391439732,-763.54588774,0.00031992,2]
[374636346,1753391439742,-1294.14423062,0.00031992,2]
[374636348,1753391439751,-437233.10289281,0.00032,2]
[374636350,1753391439760,-55047.09439718,0.00032,2]
[374636352,1753391439772,-9841.34913419,0.00032004,3]
[374636354,1753391439781,-500.0,0.00032014,7]
[374636356,1753391439791,-700.0,0.00032014,7]
[374636358,1753391439801,-500.0,0.00032014,7]
[374636359,1753391439810,-763.54588774,0.00032083,2]
[374636362,1753391439820,-1294.14423062,0.00032083,2]
[374636363,1753391439830,-509.0,0.00032085,2]
[374636365,1753391439839,-175.02,0.00032118,2]
[374636367,1753391439851,-500.0,0.0003214,15]
[374636369,1753391439871,-763.54588774,0.00032175,2]
[374636371,1753391439881,-1294.14423062,0.00032175,2]
[374636373,1753391439891,-763.54588774,0.00032267,2]
[374636375,1753391439900,-1294.14423062,0.00032267,2]
[374636377,1753391439910,-763.54588774,0.00032358,2]
[374636378,1753391439920,-1294.14423062,0.00032358,2]
[374636380,1753391439930,-720.0,0.00032374,3]
[374636382,1753391439939,-500.0,0.00032414,15]
[374636384,1753391439948,-763.54588774,0.0003245,2]
[374636386,1753391439958,-1294.14423062,0.0003245,2]
[374636388,1753391439967,-763.54588774,0.00032542,2]
[374636390,1753391439977,-1294.14423062,0.00032542,2]
[374636392,1753391439986,-168.0,0.00032587,2]
[374636394,1753391439996,-160.0,0.0003259,2]
[374636396,1753391440005,-763.54588774,0.00032633,2]
[374636397,1753391440017,-1294.14423062,0.00032633,2]
[374636399,1753391440027,-500.0,0.00032688,15]
[374636401,1753391440036,-2500.0,0.000327,10]
[374636403,1753391440046,-15522.5932146,0.00032706,3]
[374636405,1753391440055,-9841.34913419,0.00032712,3]
[374636407,1753391440064,-157.37046024,0.00032724,4]
[374636409,1753391440074,-763.54588774,0.00032725,2]
[374636411,1753391440083,-1294.14423062,0.00032725,2]
[374636413,1753391440093,-9841.34913419,0.00032785,3]
[374636415,1753391440102,-15522.5932146,0.00032794,3]
[374636417,1753391440112,-1066.08535744,0.00032794,15]
[374636419,1753391440121,-49325.14491441,0.00032794,17]
[374636421,1753391440130,-2571.72328238,0.00032794,61]
[374636423,1753391440140,-31045.1864293,0.00032794,3]
[374636425,1753391440150,-29524.0474026,0.00032794,3]
[374636427,1753391440159,-14642.0,0.00032795,2]
[374636429,1753391440169,-124180.745717,0.00032795,3]
[374636431,1753391440179,-127937.538744,0.00032795,3]
[374636433,1753391440188,-600.0,0.00032804,2]
[374636435,1753391440198,-589.12532124,0.00032804,2]
[374636437,1753391440207,-202.96181845,0.00032805,2]
[374636438,1753391440217,-15522.5932146,0.00032815,3]
[374636440,1753391440226,-118096.18961,0.00032815,3]
[374636442,1753391440235,-244.53544528,0.00032824,2]
[374636444,1753391440245,-150.0,0.00032824,2]
[374636446,1753391440254,-1066.08535744,0.00032824,15]
[374636448,1753391440267,-150.0,0.00032824,15]
[374636450,1753391440277,-2593.0,0.00032824,2]
[374636452,1753391440286,-1257232.02674932,0.00032825,30]
[374636454,1753391440298,-368.42788297,0.00032825,30]
[374636457,1753391440310,-75000.0,0.00032825,30]
[374636732,1753391443277,-164.82328036,0.00032705,2]
[374636734,1753391443287,-356.52808476,0.00032705,2]
[374636737,1753391443299,-43.2097301,0.00032705,2]
[374636739,1753391443309,-500.0,0.00032705,2]
[374636741,1753391443320,-199.2902699,0.00032705,2]
[374636971,1753391445890,-300.7097301,0.00032705,2]
[374636973,1753391445900,-500.0,0.00032705,2]
[374636975,1753391445910,-500.0,0.00032705,2]
[374636977,1753391445920,-500.0,0.00032705,2]
[374636979,1753391445930,-500.0,0.00032705,2]
[374636981,1753391445939,-500.0,0.00032705,2]
[374636984,1753391445949,-201.12156959,0.00032705,2]
[374636986,1753391445961,-298.87843041,0.00032705,2]
[374636988,1753391445970,-500.0,0.00032705,2]
[374636990,1753391445980,-500.0,0.00032705,2]
[374636992,1753391445989,-500.0,0.00032705,2]
[374636994,1753391445998,-500.0,0.00032705,2]
[374636996,1753391446008,-500.0,0.00032705,2]
[374636998,1753391446018,-500.0,0.00032705,2]
[374637000,1753391446029,-500.0,0.00032705,2]
[374637002,1753391446038,-500.0,0.00032705,2]
[374637004,1753391446048,-500.0,0.00032705,2]
[374637006,1753391446058,-500.0,0.00032705,2]
[374637008,1753391446067,-500.0,0.00032705,2]
[374637010,1753391446077,-500.0,0.00032705,2]
[374637013,1753391446086,-500.0,0.00032705,2]
[374637016,1753391446095,-500.0,0.00032705,2]
[374637019,1753391446104,-500.0,0.00032705,2]
[374637022,1753391446114,-500.0,0.00032705,2]
[374637025,1753391446123,-500.0,0.00032705,2]
[374637027,1753391446133,-500.0,0.00032705,2]
[374637029,1753391446142,-500.0,0.00032705,2]
[374637031,1753391446152,-715.75196954,0.00032825,30]
[374637032,1753391446165,-5898.37001974,0.00032825,30]
[374637034,1753391446176,-5244.62757537,0.00032825,30]
[374637036,1753391446188,-651.0,0.00032825,30]
[374637037,1753391446200,-1191.78926013,0.00032825,30]
[374637039,1753391446216,-42503.88303843,0.00032825,30]
[374637041,1753391446227,-274.43080831,0.00032825,30]
[374637052,1753391446389,-162.2507132,0.00032725,2]
[374637054,1753391446399,-4188.03194842,0.00032825,30]
[374637055,1753391446410,-594.7291779,0.00032825,30]
[374637057,1753391446421,-207351.3744293,0.00032825,30]
[374637059,1753391446433,-22271.7294158,0.00032825,30]
[374637061,1753391446445,-116520.29594527,0.00032825,30]
[374637063,1753391446456,-576.04979988,0.00032825,30]
[374637064,1753391446467,-974.9999998,0.00032825,30]
[374637066,1753391446478,-3070.45089725,0.00032825,30]
[374637714,1753391605841,250.0,0.00015,2]
[374637715,1753391609392,300.0,0.00017,2]
[374637720,1753392309855,101711.22133243,0.00019,2]
[374637743,1753392452704,160.43,0.00013699,2]
[374637745,1753392455891,1610.43981911,0.00018,2]
[374637758,1753392631771,-151.0,0.00022,2]
[374637759,1753392631781,-150.0,0.00022,2]
[374637760,1753392631791,-52.00846623,0.00022548,2]
[374637761,1753392631804,-98.99153377,0.00022548,2]
[374637762,1753392631815,-5359.53222756,0.000249,2]
[374637763,1753392631824,-209.50041626,0.0002496,2]
[374637764,1753392631835,-604.59559038,0.0002506,2]
[374637765,1753392631845,-190.98443596,0.00025362,2]
[374637766,1753392631883,-1009.01556404,0.00025362,2]
[374637767,1753392631893,-214.88180215,0.000259,14]
[374637768,1753392631902,-287.0,0.00025999,2]
[374637769,1753392631912,-310.61318415,0.00026,2]
[374637770,1753392631923,-544.24322174,0.00026,2]
[374637771,1753392631941,-1993.85410016,0.00026,2]
[374637772,1753392631952,-1620.22444959,0.00026,2]
[374637773,1753392631962,-222.50562215,0.00026229,2]
[374637774,1753392631971,-500.0,0.00026232,2]
[374637775,1753392631980,-500.0,0.00026329,2]
[374637776,1753392631990,-333.49,0.00026332,2]
[374637777,1753392631999,-214.8818021,0.00026775,15]
[374637778,1753392632011,-316.1826614,0.00026941,2]
[374637779,1753392632021,-316.1826614,0.0002695,2]
[374637780,1753392632030,-2009.68479649,0.00026953,2]
[374637781,1753392632040,-2009.68479649,0.0002701,2]
[374637782,1753392632050,-316.1826614,0.00027032,2]
[374637783,1753392632065,-2009.68479649,0.00027033,2]
[374637784,1753392632075,-2009.68479649,0.00027053,2]
[374637785,1753392632085,-316.1826614,0.0002707,2]
[374637786,1753392632095,-454.48309644,0.00027542,3]
[374637787,1753392632110,-600.0,0.00027564,2]
[374637789,1753392632120,-229.72,0.00027564,2]
[374637790,1753392632131,-1200.0,0.00027589,2]
[374637791,1753392632141,-214.8818021,0.0002765,17]
[374637792,1753392632150,-214.36,0.00027685,2]
[374637793,1753392632160,-333.49,0.00028062,2]
[374637794,1753392632170,-11232.20608356,0.00028203,10]
[374637797,1753392632182,-4200.51734505,0.00028203,10]
[374637810,1753392637896,-531.98657139,0.00028203,10]
[374637811,1753392637906,-393.0,0.00028247,2]
[374637812,1753392637915,-214.8818021,0.00028525,19]
[374637813,1753392637924,-510.0,0.00029085,2]
[374637814,1753392637934,-823.78,0.00029319,2]
[374637815,1753392637943,-214.8818021,0.000294,20]
[374637816,1753392637953,-25.2711762,0.00029792,2]
[374637817,1753392637964,-308.2188238,0.00029792,2]
[374637818,1753392637973,-545.9372991,0.00030075,2]
[374637837,1753392640331,-4454.0627009,0.00030075,2]
[374637838,1753392640342,-240.21,0.00030086,2]
[374637839,1753392640351,-250.0,0.00030093,2]
[374637840,1753392640361,-291.438,0.00030093,25]
[374637841,1753392640370,-151.0,0.00030098,2]
[374637842,1753392640380,-600.0,0.00030098,2]
[374637843,1753392640390,-589.12532124,0.00030098,2]
[374637844,1753392640399,-151.0,0.00030098,2]
[374637845,1753392640408,-151.0,0.00030098,2]
[374637846,1753392640418,-151.0,0.00030098,2]
[374637847,1753392640427,-151.0,0.00030098,2]
[374637848,1753392640437,-151.0,0.00030098,2]
[374637849,1753392640446,-151.0,0.00030098,2]
[374637850,1753392640455,-151.0,0.00030098,2]
[374637851,1753392640465,-151.0,0.00030098,2]
[374637852,1753392640475,-151.0,0.00030098,2]
[374637853,1753392640485,-151.0,0.00030098,2]
[374637854,1753392640494,-151.0,0.00030098,2]
[374637855,1753392640503,-151.0,0.00030098,2]
[374637856,1753392640512,-151.0,0.00030098,2]
[374637857,1753392640522,-151.0,0.00030098,2]
[374637858,1753392640531,-151.0,0.00030098,2]
[374637859,1753392640540,-151.0,0.00030098,2]
[374637860,1753392640550,-151.0,0.00030098,2]
[374637861,1753392640559,-151.0,0.00030098,2]
[374637863,1753392640568,-151.0,0.00030098,2]
[374637864,1753392640577,-151.0,0.00030098,2]
[374637865,1753392640589,-151.0,0.00030098,2]
[374637866,1753392640599,-151.0,0.00030098,2]
[374637867,1753392640610,-151.0,0.00030098,2]
[374637868,1753392640620,-151.0,0.00030098,2]
[374637870,1753392640629,-151.0,0.00030098,2]
[374637871,1753392640640,-151.0,0.00030098,2]
[374637872,1753392640650,-151.0,0.00030098,2]
[374637873,1753392640659,-151.0,0.00030098,2]
[374637874,1753392640669,-151.0,0.00030098,2]
[374637875,1753392640679,-151.0,0.00030098,2]
[374637877,1753392640688,-151.0,0.00030098,2]
[374637878,1753392640698,-151.0,0.00030098,2]
[374637880,1753392640708,-151.0,0.00030098,2]
[374637883,1753392640717,-151.0,0.00030098,2]
[374637884,1753392640727,-151.0,0.00030098,2]
[374637886,1753392640736,-151.0,0.00030098,2]
[374637888,1753392640746,-151.0,0.00030098,2]
[374637889,1753392640755,-1000.0,0.00030116,2]
[374637890,1753392640765,-167.8,0.00030228,120]
[374637891,1753392640774,-214.8818021,0.00030275,22]
[374637892,1753392640784,-1000.0,0.00030513,2]
[374637893,1753392640793,-180.0,0.00030514,7]
[374637894,1753392640803,-407.17,0.00030811,30]
[374637895,1753392640812,-1000.0,0.00031016,2]
[374637896,1753392640821,-155.82,0.00031137,2]
[374637897,1753392640831,-214.8818021,0.0003115,24]
[374637898,1753392640842,-240.21,0.00031214,2]
[374637899,1753392640851,-510.0,0.00031293,6]
[374637900,1753392640862,-160.43,0.00031311,2]
[374637901,1753392640871,-174.57,0.00031414,2]
[374637902,1753392640881,-156.587,0.00031467,2]
[374637903,1753392640890,-333.49,0.00031523,2]
[374637904,1753392640899,-150.0,0.00031688,2]
[374637905,1753392640909,-168.05,0.00031809,2]
[374637906,1753392640919,-502.75,0.0003187,2]
[374637907,1753392640928,-1631.34,0.00031941,2]
[374637908,1753392640937,-465.17,0.00031941,2]
[374637909,1753392640946,-23483.54198889,0.00032,2]
[374637910,1753392640955,-458.49,0.00032,2]
[374637911,1753392640964,-164.72,0.00032,2]
[374637912,1753392640974,-357.46,0.00032,2]
[374637913,1753392640983,-700.0,0.00032014,7]
[374637914,1753392640993,-500.0,0.00032014,7]
[374637915,1753392641002,-500.0,0.00032014,7]
[374637916,1753392641012,-214.8818021,0.00032025,26]
[374637917,1753392641021,-240.21,0.00032342,2]
[374637918,1753392641031,-374.92,0.00032404,2]
[374637919,1753392641040,-2720.06127,0.000325,2]
[374637920,1753392641049,-839.91269601,0.00032568,2]
[374637921,1753392641062,-477.18900901,0.00032568,2]
[374637922,1753392641073,-1776.9,0.00032638,2]
[374637923,1753392641083,-377.18363635,0.00032722,2]
[374637924,1753392641093,-377.18363632,0.00032724,2]
[374637925,1753392641103,-377.18363632,0.00032725,2]
[374637926,1753392641112,-377.18363632,0.00032727,2]
[374637927,1753392641122,-377.18363632,0.00032728,2]
[374637928,1753392641132,-377.18363632,0.0003273,2]
[374637929,1753392641142,-377.18363632,0.00032731,2]
[374637930,1753392641152,-377.18363632,0.00032733,2]
[374637931,1753392641162,-377.18363632,0.00032734,2]
[374637932,1753392641172,-377.18363632,0.00032736,2]
[374637933,1753392641181,-168.0,0.00032764,2]
[374637934,1753392641191,-16795.96552438,0.00032815,3]
[374637935,1753392641203,-1622.79702983,0.00032815,3]
[374637936,1753392641215,-261029.77913979,0.00032815,3]
[374637937,1753392641225,-202.96181845,0.00032815,2]
[374637938,1753392641234,-2340.43,0.00032822,2]
[374637939,1753392641244,-1066.08535744,0.00032823,15]
[374637940,1753392641254,-300.0,0.00032824,10]
[374637941,1753392641696,-244.53544528,0.00032824,2]
[374637942,1753392641711,-500.0,0.00032824,2]
[374637943,1753392641722,-500.0,0.00032824,2]
[374637944,1753392641733,-500.0,0.00032824,2]
[374637945,1753392641743,-500.0,0.00032824,2]
[374637946,1753392641752,-164.68041683,0.00032824,2]
[374637947,1753392641761,-500.0,0.00032824,2]
[374637948,1753392641771,-2000.0,0.00032824,2]
[374637949,1753392641780,-2000.0,0.00032824,2]
[374637950,1753392641789,-721.30704882,0.00032824,2]
[374637951,1753392641799,-367.56,0.00032824,2]
[374637952,1753392641808,-150.0,0.00032824,15]
[374637953,1753392641818,-2593.0,0.00032824,2]
[374637954,1753392641828,-53533.11904773,0.00032825,17]
[374637955,1753392641837,-642.93082059,0.00032825,61]
[374637956,1753392641848,-1066590.1284214,0.00032825,30]
[374637963,1753392643052,-397.0,0.00032383,2]
[374637964,1753392643065,-393.1041568,0.00032825,30]
[374637965,1753392643101,-12421.46773325,0.00032825,30]
[374637966,1753392643113,-3449.11116947,0.00032825,30]
[374637988,1753392645801,-816.14,0.00032822,2]
[374637989,1753392645811,-465.55,0.00032822,2]
[374637990,1753392645820,-363.7325,0.00032824,2]
[374637991,1753392645830,-5120.0175,0.00032825,30]
[374637992,1753392645917,-1191.4921,0.00032825,30]
[374637993,1753392645975,-20827.54719555,0.00032825,30]
[374638075,1753392842614,261.0,0.0002705,120]
[374638080,1753393152018,193.93975795,0.00027209,120]
[374638089,1753393594043,160.64,0.00013699,2]
[374638094,1753393630134,1791.1027,7.945e-05,2]
[374638096,1753393630160,5619.939024,7.945e-05,2]
[374638125,1753393832028,-150.0,0.00022,2]
[374638126,1753393832040,-185.42135183,0.00023919,2]
[374638127,1753393832051,-191.75,0.00024019,2]
[374638128,1753393832061,-185.42135179,0.00024361,2]
[374638129,1753393832070,-185.42135179,0.00024803,2]
[374638130,1753393832081,-373.96,0.00024959,2]
[374638131,1753393832092,-185.42135179,0.00025246,2]
[374638132,1753393832103,-300.0,0.00025641,2]
[374638133,1753393832113,-200.0,0.00025641,2]
[374638134,1753393832122,-185.42135179,0.00025688,2]
[374638135,1753393832131,-5511.0,0.000258,5]
[374638136,1753393832141,-1200.0,0.00025999,2]
[374638137,1753393832152,-185.42135179,0.0002613,2]
[374638138,1753393832162,-373.96,0.00026689,2]
[374638139,1753393832173,-300.0,0.00026907,2]
[374638140,1753393832183,-600.0,0.00027412,2]
[374638141,1753393832193,-422.44,0.00027412,2]
[374638142,1753393832203,-167.61601523,0.00028143,120]
[374638143,1753393832212,-422.0,0.00028262,2]
[374638144,1753393832221,-373.96,0.00028419,2]
[374638145,1753393832232,-509.0,0.00029293,2]
[374638146,1753393832241,-150.0,0.0002954,7]
[374638147,1753393832250,-150.0,0.0002954,7]
[374638148,1753393832260,-150.0,0.0002954,7]
[374638149,1753393832270,-150.0,0.0002954,7]
[374638150,1753393832282,-150.0,0.0002954,7]
[374638151,1753393832291,-150.0,0.0002954,7]
[374638152,1753393832301,-272.93468794,0.00029551,120]
[374638153,1753393832312,-231.99448475,0.00029551,120]
[374638154,1753393832322,-197.19531203,0.00029551,120]
[374638155,1753393832333,-226.505,0.00029696,23]
[374638156,1753393832343,-1147.671,0.00029696,23]
[374638157,1753393832354,-366.45,0.00029834,30]
[374638158,1753393832366,-160.14,0.00029838,2]
[374638160,1753393832377,-250.0,0.00029895,2]
[374638162,1753393832387,-151.0,0.00029896,2]
[374638164,1753393832396,-151.0,0.00029896,2]
[374638166,1753393832407,-151.0,0.00029896,2]
[374638168,1753393832417,-151.0,0.00029896,2]
[374638169,1753393832427,-151.0,0.00029896,2]
[374638170,1753393832437,-151.0,0.00029896,2]
[374638171,1753393832448,-151.0,0.00029896,2]
[374638172,1753393832462,-151.0,0.00029896,2]
[374638173,1753393832482,-151.0,0.00029896,2]
[374638175,1753393832505,-151.0,0.00029896,2]
[374638177,1753393832525,-151.0,0.00029896,2]
[374638179,1753393832537,-151.0,0.00029896,2]
[374638181,1753393832547,-151.0,0.00029896,2]
[374638183,1753393832557,-151.0,0.00029896,2]
[374638185,1753393832568,-151.0,0.00029896,2]
[374638187,1753393832578,-151.0,0.00029896,2]
[374638189,1753393832587,-151.0,0.00029896,2]
[374638191,1753393832597,-151.0,0.00029896,2]
[374638193,1753393832607,-23900.0,0.00029914,2]
[374638195,1753393832617,-150.0,0.0002995,7]
[374638197,1753393832627,-438.45,0.00029958,2]
[374638199,1753393832636,-491.63,0.00030056,2]
[374638201,1753393832646,-150.0,0.00030087,7]
[374638203,1753393832657,-373.96,0.0003015,2]
[374638205,1753393832666,-1000.0,0.00030235,2]
[374638207,1753393832676,-181.89,0.00030286,2]
[374638209,1753393832686,-150.0,0.0003036,7]
[374638211,1753393832695,-272.4,0.00030512,120]
[374638213,1753393832705,-187.46,0.00030547,2]
[374638215,1753393832714,-150.0,0.00030634,7]
[374638217,1753393832724,-150.0,0.00030634,7]
[374638219,1753393832735,-150.0,0.00030771,7]
[374638221,1753393832744,-180.0,0.00030831,7]
[374638222,1753393832754,-150.0,0.00031181,7]
[374638224,1753393832763,-150.0,0.00031181,7]
[374638226,1753393832772,-156.587,0.00031265,2]
[374638228,1753393832782,-160.64,0.00031311,2]
[374638230,1753393832791,-438.45,0.00031456,2]
[374638232,1753393832801,-509.0,0.00031486,6]
[374638233,1753393832811,-150.0,0.00031591,7]
[374638234,1753393832821,-500.0,0.00031592,15]
[374638235,1753393832831,-165.76,0.00031614,2]
[374638236,1753393832840,-150.0,0.00031728,7]
[374638237,1753393832850,-150.0,0.00031728,7]
[374638238,1753393832860,-168.0,0.00031731,2]
[374638239,1753393832872,-500.0,0.00031866,15]
[374638240,1753393832882,-373.96,0.0003188,2]
[374638241,1753393832892,-165.16,0.00031986,2]
[374638242,1753393832902,-2340.43,0.00032,2]
[374638243,1753393832915,-150.0,0.00032001,7]
[374638244,1753393832925,-500.0,0.00032014,7]
[374638245,1753393832935,-500.0,0.00032014,7]
[374638246,1753393832944,-600.0,0.00032014,7]
[374638247,1753393832955,-168.0,0.0003204,2]
[374638248,1753393832966,-168.0,0.00032042,2]